fUST/lending_fUST_20250221
["ID","MTS","AMOUNT","RATE_DAILY","PERIOD"]
[353855898,1740096640118,-500.0,0.00013698,2]
[353855899,1740096640127,-309.86,0.00013698,2]
[353855900,1740096640135,-1871.42,0.00013698,2]
[353855901,1740096640145,-18104.48,0.00013698,2]
[353855902,1740096640154,-500.0,0.00013698,2]
[353855903,1740096640164,-500.0,0.00013698,2]
[353855904,1740096640173,-500.0,0.00013698,2]
[353855905,1740096640182,-500.0,0.00013698,2]
[353855906,1740096640192,-500.0,0.00013698,2]
[353855907,1740096640201,-901.98,0.00013698,2]
[353855908,1740096640210,-163.755283,0.00013699,2]
[353855909,1740096640220,-164.612171,0.00013699,2]
[353855910,1740096640230,-500.0,0.00013699,2]
[353855911,1740096640241,-500.0,0.00013699,2]
[353855912,1740096640250,-297.40654701,0.00013699,2]
[353855913,1740096640269,-500.0,0.00013699,2]
[353855914,1740096640280,-500.0,0.00013699,2]
[353855915,1740096640290,-500.0,0.00013699,2]
[353855916,1740096640299,-500.0,0.00013699,2]
[353855917,1740096640309,-500.0,0.00013699,2]
[353855918,1740096640319,-500.0,0.00013699,2]
[353855919,1740096640329,-500.0,0.00013699,2]
[353855920,1740096640339,-500.0,0.00013699,2]
[353855921,1740096640349,-500.0,0.00013699,2]
[353855922,1740096640360,-456.34783748,0.00013699,2]
[353855923,1740096640370,-500.0,0.00013699,2]
[353855924,1740096640380,-500.0,0.00013699,2]
[353855925,1740096640391,-500.0,0.00013699,2]
[353855926,1740096640401,-500.0,0.00013699,2]
[353855927,1740096640411,-500.0,0.00013699,2]
[353855928,1740096640422,-500.0,0.00013699,2]
[353855929,1740096640432,-500.0,0.00013699,2]
[353855930,1740096640442,-500.0,0.00013699,2]
[353855931,1740096640453,-500.0,0.00013699,2]
[353855932,1740096640467,-500.0,0.00013699,2]
[353855933,1740096640477,-500.0,0.00013699,2]
[353855934,1740096640489,-500.0,0.00013699,2]
[353855935,1740096640499,-500.0,0.00013699,2]
[353855936,1740096640508,-500.0,0.00013699,2]
[353855937,1740096640518,-500.0,0.00013699,2]
[353855938,1740096640528,-500.0,0.00013699,2]
[353855939,1740096640538,-500.0,0.00013699,2]
[353855940,1740096640550,-500.0,0.00013699,2]
[353855941,1740096640559,-500.0,0.00013699,2]
[353855942,1740096640570,-500.0,0.00013699,2]
[353855943,1740096640579,-500.0,0.00013699,2]
[353855944,1740096640589,-500.0,0.00013699,2]
[353855945,1740096640601,-500.0,0.00013699,2]
[353855946,1740096640611,-500.0,0.00013699,2]
[353855947,1740096640620,-527.68332351,0.00013699,2]
[353855948,1740096640632,-500.0,0.00013699,2]
[353855949,1740096640642,-500.0,0.00013699,2]
[353855950,1740096640652,-500.0,0.00013699,2]
[353855951,1740096640662,-500.0,0.00013699,2]
[353855952,1740096640672,-500.0,0.00013699,2]
[353855953,1740096640682,-3000.0,0.00013763,2]
[353855954,1740096640693,-500.0,0.0001378,2]
[353855955,1740096640703,-686.6,0.0001378,2]
[353855956,1740096640713,-500.0,0.0001378,2]
[353855957,1740096640723,-1000.0,0.0001378,2]
[353855958,1740096640732,-500.0,0.0001378,2]
[353855959,1740096640743,-500.0,0.0001378,2]
[353855960,1740096640753,-500.0,0.0001378,2]
[353855961,1740096640762,-500.0,0.0001378,2]
[353855962,1740096640772,-500.0,0.0001378,2]
[353855963,1740096640782,-500.0,0.0001378,2]
[353855964,1740096640791,-500.0,0.0001378,2]
[353855965,1740096640802,-1606.58,0.0001378,2]
[353855966,1740096640811,-500.0,0.0001378,2]
[353855967,1740096640821,-500.0,0.0001378,2]
[353855968,1740096640830,-500.0,0.0001378,2]
[353855969,1740096640840,-751.56,0.0001378,2]
[353855970,1740096640850,-500.0,0.0001378,2]
[353855971,1740096640859,-964.76,0.0001378,2]
[353855972,1740096640869,-500.0,0.0001378,2]
[353855973,1740096640878,-589.91,0.0001378,2]
[353855974,1740096640887,-500.0,0.0001378,2]
[353855975,1740096640897,-500.0,0.0001378,2]
[353855976,1740096640906,-634.48,0.0001378,2]
[353855977,1740096640917,-500.0,0.0001378,2]
[353855978,1740096640928,-687.91,0.0001378,2]
[353855979,1740096640937,-500.0,0.0001378,2]
[353855980,1740096640947,-1161.15,0.0001378,2]
[353855981,1740096640956,-647.21,0.0001378,2]
[353855982,1740096640966,-500.0,0.0001378,2]
[353855983,1740096640975,-789.92,0.0001378,2]
[353855984,1740096640986,-1279.72,0.0001378,2]
[353855985,1740096640996,-638.7,0.0001378,2]
[353855986,1740096641006,-500.0,0.0001378,2]
[353855987,1740096641015,-658.92,0.0001378,2]
[353855988,1740096641025,-640.79313422,0.0001378,2]
[353855989,1740096641034,-596.03,0.0001378,2]
[353855990,1740096641044,-1224.27,0.0001378,2]
[353855991,1740096641054,-500.0,0.0001378,2]
[353855992,1740096641064,-500.0,0.0001378,2]
[353855993,1740096641073,-901.49,0.0001378,2]
[353855994,1740096641083,-500.0,0.0001378,2]
[353855995,1740096641093,-558.57,0.0001378,2]
[353855996,1740096641103,-500.0,0.0001378,2]
[353855997,1740096641113,-807.14,0.0001378,2]
[353855998,1740096641123,-500.0,0.0001378,2]
[353855999,1740096641133,-500.0,0.0001378,2]
[353856000,1740096641143,-588.3,0.0001378,2]
[353856001,1740096641153,-500.0,0.0001378,2]
[353856002,1740096641167,-500.0,0.0001378,2]
[353856003,1740096641178,-500.0,0.0001378,2]
[353856004,1740096641188,-500.0,0.0001378,2]
[353856005,1740096641198,-500.0,0.0001378,2]
[353856006,1740096641207,-500.0,0.0001378,2]
[353856007,1740096641217,-500.0,0.0001378,2]
[353856008,1740096641228,-500.0,0.0001378,2]
[353856009,1740096641239,-500.0,0.0001378,2]
[353856010,1740096641249,-2112.09,0.0001378,2]
[353856011,1740096641259,-500.0,0.0001378,2]
[353856012,1740096641269,-2172.75,0.0001378,2]
[353856013,1740096641279,-500.0,0.0001378,2]
[353856014,1740096641288,-500.0,0.0001378,2]
[353856015,1740096641298,-528.95,0.0001378,2]
[353856016,1740096641308,-7729.28,0.0001378,2]
[353856017,1740096641318,-500.0,0.0001378,2]
[353856018,1740096641328,-3094.13,0.0001378,2]
[353856019,1740096641337,-1136.15,0.0001378,2]
[353856020,1740096641347,-1486.57,0.0001378,2]
[353856021,1740096641357,-600.33,0.0001378,2]
[353856022,1740096641367,-500.0,0.0001378,2]
[353856023,1740096641377,-500.0,0.0001378,2]
[353856024,1740096641386,-37996.16,0.0001378,2]
[353856025,1740096641396,-3464.25,0.0001378,2]
[353856026,1740096641405,-1175.47,0.0001378,2]
[353856027,1740096641415,-13639.53,0.0001378,2]
[353856028,1740096641424,-1634.77,0.0001378,2]
[353856029,1740096641434,-502.91,0.0001378,2]
[353856030,1740096641444,-500.0,0.0001378,2]
[353856031,1740096641454,-500.0,0.0001378,2]
[353856032,1740096641465,-790.91,0.0001378,2]
[353856033,1740096641475,-1221.06,0.0001378,2]
[353856034,1740096641484,-500.0,0.0001378,2]
[353856035,1740096641494,-1344.49,0.0001378,2]
[353856036,1740096641503,-622.0,0.0001378,2]
[353856037,1740096641514,-2602.3,0.0001378,2]
[353856038,1740096641523,-909.59,0.0001378,2]
[353856039,1740096641533,-1558.66,0.0001378,2]
[353856040,1740096641545,-500.0,0.0001378,2]
[353856041,1740096641554,-3345.4,0.0001378,2]
[353856042,1740096641564,-500.0,0.0001378,2]
[353856043,1740096641573,-3522.52,0.0001378,2]
[353856044,1740096641583,-500.0,0.0001378,2]
[353856045,1740096641592,-6601.19,0.0001378,2]
[353856046,1740096641602,-554.07,0.0001378,2]
[353856047,1740096641612,-500.0,0.0001378,2]
[353856048,1740096641622,-682.12,0.0001378,2]
[353856049,1740096641632,-500.0,0.0001378,2]
[353856050,1740096641642,-3591.47,0.0001378,2]
[353856051,1740096641651,-584.09,0.0001378,2]
[353856052,1740096641661,-657.23,0.0001378,2]
[353856053,1740096641671,-500.0,0.0001378,2]
[353856054,1740096641681,-1996.0,0.0001378,2]
[353856055,1740096641691,-855.35,0.0001378,2]
[353856056,1740096641700,-1243.14,0.0001378,2]
[353856057,1740096641710,-2053.02,0.0001378,2]
[353856058,1740096641719,-2400.28,0.0001378,2]
[353856059,1740096641866,-1084.12,0.0001378,2]
[353856060,1740096641876,-5873.51,0.0001378,2]
[353856061,1740096641886,-500.0,0.0001378,2]
[353856062,1740096641895,-550.36,0.0001378,2]
[353856063,1740096641905,-500.0,0.0001378,2]
[353856064,1740096641915,-500.0,0.0001378,2]
[353856065,1740096641924,-2528.55,0.0001378,2]
[353856066,1740096641933,-2085.88,0.0001378,2]
[353856067,1740096641942,-500.0,0.0001378,2]
[353856068,1740096641951,-500.0,0.0001378,2]
[353856069,1740096641960,-567.85,0.0001378,2]
[353856070,1740096641969,-500.0,0.0001378,2]
[353856071,1740096641978,-500.0,0.0001378,2]
[353856072,1740096641988,-500.0,0.0001378,2]
[353856073,1740096641997,-755.6,0.0001378,2]
[353856074,1740096642007,-500.0,0.0001378,2]
[353856075,1740096642017,-500.0,0.0001378,2]
[353856076,1740096642027,-500.0,0.0001378,2]
[353856077,1740096642036,-1871.42,0.0001378,2]
[353856078,1740096642045,-18104.48,0.0001378,2]
[353856079,1740096642055,-500.0,0.0001378,2]
[353856080,1740096642065,-500.0,0.0001378,2]
[353856081,1740096642075,-500.0,0.0001378,2]
[353856082,1740096642084,-500.0,0.0001378,2]
[353856083,1740096642094,-500.0,0.0001378,2]
[353856084,1740096642103,-901.98,0.0001378,2]
[353856085,1740096642112,-300.0,0.000138,4]
[353856086,1740096642122,-812.78778489,0.00013828,2]
[353856087,1740096642131,-500.0,0.00013863,2]
[353856088,1740096642140,-686.6,0.00013863,2]
[353856089,1740096642149,-500.0,0.00013863,2]
[353856090,1740096642159,-1000.0,0.00013863,2]
[353856091,1740096642168,-500.0,0.00013863,2]
[353856092,1740096642178,-500.0,0.00013863,2]
[353856093,1740096642187,-500.0,0.00013863,2]
[353856094,1740096642196,-500.0,0.00013863,2]
[353856095,1740096642206,-500.0,0.00013863,2]
[353856096,1740096642216,-500.0,0.00013863,2]
[353856097,1740096642225,-500.0,0.00013863,2]
[353856098,1740096642235,-1606.58,0.00013863,2]
[353856099,1740096642245,-500.0,0.00013863,2]
[353856100,1740096642254,-500.0,0.00013863,2]
[353856101,1740096642263,-500.0,0.00013863,2]
[353856102,1740096642272,-751.56,0.00013863,2]
[353856103,1740096642282,-500.0,0.00013863,2]
[353856104,1740096642291,-964.76,0.00013863,2]
[353856105,1740096642300,-234.67048638,0.00013863,2]
[353856106,1740096642310,-589.91,0.00013863,2]
[353856107,1740096642319,-500.0,0.00013863,2]
[353856108,1740096642328,-500.0,0.00013863,2]
[353856109,1740096642338,-634.48,0.00013863,2]
[353856110,1740096642347,-687.91,0.00013863,2]
[353856111,1740096642357,-500.0,0.00013863,2]
[353856112,1740096642366,-1161.15,0.00013863,2]
[353856113,1740096642376,-647.21,0.00013863,2]
[353856114,1740096642386,-500.0,0.00013863,2]
[353856115,1740096642395,-789.92,0.00013863,2]
[353856116,1740096642405,-1279.72,0.00013863,2]
[353856117,1740096642414,-638.7,0.00013863,2]
[353856118,1740096642423,-500.0,0.00013863,2]
[353856119,1740096642433,-658.92,0.00013863,2]
[353856120,1740096642442,-596.03,0.00013863,2]
[353856121,1740096642451,-1224.27,0.00013863,2]
[353856122,1740096642466,-500.0,0.00013863,2]
[353856123,1740096642475,-500.0,0.00013863,2]
[353856124,1740096642485,-901.49,0.00013863,2]
[353856125,1740096642495,-316.09434136,0.00013863,2]
[353856126,1740096642506,-558.57,0.00013863,2]
[353856127,1740096642515,-500.0,0.00013863,2]
[353856128,1740096642524,-807.14,0.00013863,2]
[353856129,1740096642534,-588.3,0.00013863,2]
[353856130,1740096642544,-500.0,0.00013863,2]
[353856131,1740096642554,-500.0,0.00013863,2]
[353856132,1740096642563,-396.08892718,0.00013863,2]
[353856133,1740096642572,-500.0,0.00013863,2]
[353856134,1740096642581,-500.0,0.00013863,2]
[353856135,1740096642590,-500.0,0.00013863,2]
[353856136,1740096642599,-210.36291005,0.00013863,2]
[353856137,1740096642610,-500.0,0.00013863,2]
[353856138,1740096642620,-500.0,0.00013863,2]
[353856139,1740096642630,-2112.09,0.00013863,2]
[353856140,1740096642639,-2172.75,0.00013863,2]
[353856141,1740096642648,-500.0,0.00013863,2]
[353856142,1740096642657,-500.0,0.00013863,2]
[353856143,1740096642667,-528.95,0.00013863,2]
[353856144,1740096642676,-7729.28,0.00013863,2]
[353856145,1740096642685,-500.0,0.00013863,2]
[353856146,1740096642695,-3094.13,0.00013863,2]
[353856147,1740096642705,-1136.15,0.00013863,2]
[353856148,1740096642714,-1486.57,0.00013863,2]
[353856149,1740096642723,-600.33,0.00013863,2]
[353856150,1740096642732,-500.0,0.00013863,2]
[353856151,1740096642743,-500.0,0.00013863,2]
[353856152,1740096642752,-37996.16,0.00013863,2]
[353856153,1740096642761,-3464.25,0.00013863,2]
[353856154,1740096642770,-1175.47,0.00013863,2]
[353856155,1740096642780,-13639.53,0.00013863,2]
[353856156,1740096642789,-1634.77,0.00013863,2]
[353856157,1740096642798,-502.91,0.00013863,2]
[353856158,1740096642808,-500.0,0.00013863,2]
[353856159,1740096642817,-500.0,0.00013863,2]
[353856160,1740096642826,-790.91,0.00013863,2]
[353856161,1740096642835,-1221.06,0.00013863,2]
[353856162,1740096642845,-500.0,0.00013863,2]
[353856163,1740096642855,-1344.49,0.00013863,2]
[353856164,1740096642864,-622.0,0.00013863,2]
[353856165,1740096642873,-2602.3,0.00013863,2]
[353856166,1740096642882,-909.59,0.00013863,2]
[353856167,1740096642892,-1558.66,0.00013863,2]
[353856168,1740096642901,-500.0,0.00013863,2]
[353856169,1740096642910,-3345.4,0.00013863,2]
[353856170,1740096642920,-500.0,0.00013863,2]
[353856171,1740096642929,-3522.52,0.00013863,2]
[353856173,1740096642939,-6601.19,0.00013863,2]
[353856174,1740096642948,-554.07,0.00013863,2]
[353856175,1740096642957,-500.0,0.00013863,2]
[353856176,1740096642966,-682.12,0.00013863,2]
[353856177,1740096642975,-3591.47,0.00013863,2]
[353856178,1740096642985,-584.09,0.00013863,2]
[353856179,1740096642995,-657.23,0.00013863,2]
[353856180,1740096643004,-500.0,0.00013863,2]
[353856181,1740096643013,-1996.0,0.00013863,2]
[353856182,1740096643022,-855.35,0.00013863,2]
[353856184,1740096643032,-1243.14,0.00013863,2]
[353856186,1740096643041,-2053.02,0.00013863,2]
[353856188,1740096643051,-2400.28,0.00013863,2]
[353856190,1740096643060,-1084.12,0.00013863,2]
[353856192,1740096643070,-5873.51,0.00013863,2]
[353856194,1740096643079,-500.0,0.00013863,2]
[353856195,1740096643089,-550.36,0.00013863,2]
[353856197,1740096643098,-500.0,0.00013863,2]
[353856199,1740096643108,-2528.55,0.00013863,2]
[353856201,1740096643118,-2085.88,0.00013863,2]
[353856203,1740096643127,-500.0,0.00013863,2]
[353856205,1740096643136,-500.0,0.00013863,2]
[353856207,1740096643145,-567.85,0.00013863,2]
[353856209,1740096643153,-500.0,0.00013863,2]
[353856211,1740096643163,-500.0,0.00013863,2]
[353856213,1740096643172,-500.0,0.00013863,2]
[353856215,1740096643181,-755.6,0.00013863,2]
[353856217,1740096643191,-500.0,0.00013863,2]
[353856219,1740096643200,-500.0,0.00013863,2]
[353856221,1740096643209,-1871.42,0.00013863,2]
[353856223,1740096643219,-18104.48,0.00013863,2]
[353856225,1740096643228,-511.50051567,0.00013863,2]
[353856227,1740096643239,-500.0,0.00013863,2]
[353856229,1740096643248,-500.0,0.00013863,2]
[353856231,1740096643257,-500.0,0.00013863,2]
[353856232,1740096643266,-1248.90148633,0.00013927,2]
[353856233,1740096643275,-500.0,0.00013944,2]
[353856234,1740096643284,-329.18672832,0.00013944,2]
[353856235,1740096643294,-500.0,0.00013945,2]
[353856236,1740096643303,-686.6,0.00013945,2]
[353856237,1740096643312,-500.0,0.00013945,2]
[353856238,1740096643321,-1000.0,0.00013945,2]
[353856239,1740096643330,-500.0,0.00013945,2]
[353856240,1740096643339,-500.0,0.00013945,2]
[353856241,1740096643348,-500.0,0.00013945,2]
[353856242,1740096643357,-500.0,0.00013945,2]
[353856243,1740096643367,-500.0,0.00013945,2]
[353856244,1740096643381,-500.0,0.00013945,2]
[353856245,1740096643391,-500.0,0.00013945,2]
[353856246,1740096643400,-1606.58,0.00013945,2]
[353856247,1740096643409,-500.0,0.00013945,2]
[353856248,1740096643419,-500.0,0.00013945,2]
[353856249,1740096643428,-500.0,0.00013945,2]
[353856250,1740096643437,-751.56,0.00013945,2]
[353856251,1740096643447,-500.0,0.00013945,2]
[353856252,1740096643456,-964.76,0.00013945,2]
[353856253,1740096643468,-589.91,0.00013945,2]
[353856254,1740096643477,-500.0,0.00013945,2]
[353856255,1740096643488,-500.0,0.00013945,2]
[353856256,1740096643500,-634.48,0.00013945,2]
[353856257,1740096643510,-687.91,0.00013945,2]
[353856258,1740096643519,-500.0,0.00013945,2]
[353856259,1740096643529,-1161.15,0.00013945,2]
[353856261,1740096643539,-647.21,0.00013945,2]
[353856263,1740096643549,-192.65698737,0.00013945,2]
[353856265,1740096643558,-789.92,0.00013945,2]
[353856267,1740096643568,-1279.72,0.00013945,2]
[353856269,1740096643577,-638.7,0.00013945,2]
[353856271,1740096643586,-500.0,0.00013945,2]
[353856272,1740096643596,-658.92,0.00013945,2]
[353856273,1740096643608,-596.03,0.00013945,2]
[353856274,1740096643618,-1224.27,0.00013945,2]
[353856275,1740096643628,-500.0,0.00013945,2]
[353856276,1740096643638,-500.0,0.00013945,2]
[353856277,1740096643647,-901.49,0.00013945,2]
[353856278,1740096643657,-558.57,0.00013945,2]
[353856279,1740096643667,-500.0,0.00013945,2]
[353856280,1740096643676,-807.14,0.00013945,2]
[353856281,1740096643685,-588.3,0.00013945,2]
[353856282,1740096643695,-500.0,0.00013945,2]
[353856283,1740096643704,-500.0,0.00013945,2]
[353856284,1740096643714,-500.0,0.00013945,2]
[353856285,1740096643723,-500.0,0.00013945,2]
[353856286,1740096643732,-500.0,0.00013945,2]
[353856287,1740096643743,-500.0,0.00013945,2]
[353856288,1740096643752,-500.0,0.00013945,2]
[353856289,1740096643762,-2112.09,0.00013945,2]
[353856290,1740096643771,-2172.75,0.00013945,2]
[353856291,1740096643780,-500.0,0.00013945,2]
[353856292,1740096643789,-500.0,0.00013945,2]
[353856293,1740096643798,-528.95,0.00013945,2]
[353856294,1740096643807,-7729.28,0.00013945,2]
[353856295,1740096643816,-500.0,0.00013945,2]
[353856296,1740096643825,-3094.13,0.00013945,2]
[353856297,1740096643835,-1136.15,0.00013945,2]
[353856298,1740096643844,-1486.57,0.00013945,2]
[353856299,1740096643853,-600.33,0.00013945,2]
[353856300,1740096643863,-500.0,0.00013945,2]
[353856301,1740096643872,-500.0,0.00013945,2]
[353856302,1740096643881,-37996.16,0.00013945,2]
[353856303,1740096643891,-3464.25,0.00013945,2]
[353856304,1740096643900,-1175.47,0.00013945,2]
[353856305,1740096643909,-13639.53,0.00013945,2]
[353856306,1740096643918,-1634.77,0.00013945,2]
[353856307,1740096643927,-502.91,0.00013945,2]
[353856308,1740096643935,-500.0,0.00013945,2]
[353856309,1740096643944,-500.0,0.00013945,2]
[353856310,1740096643953,-790.91,0.00013945,2]
[353856311,1740096643962,-1221.06,0.00013945,2]
[353856312,1740096643972,-500.0,0.00013945,2]
[353856313,1740096643981,-1344.49,0.00013945,2]
[353856314,1740096643991,-622.0,0.00013945,2]
[353856315,1740096644001,-2602.3,0.00013945,2]
[353856316,1740096644010,-909.59,0.00013945,2]
[353856317,1740096644019,-1558.66,0.00013945,2]
[353856318,1740096644029,-500.0,0.00013945,2]
[353856319,1740096644038,-3345.4,0.00013945,2]
[353856320,1740096644048,-3522.52,0.00013945,2]
[353856321,1740096644057,-6601.19,0.00013945,2]
[353856322,1740096644067,-554.07,0.00013945,2]
[353856323,1740096644076,-500.0,0.00013945,2]
[353856324,1740096644085,-682.12,0.00013945,2]
[353856325,1740096644095,-3591.47,0.00013945,2]
[353856326,1740096644104,-584.09,0.00013945,2]
[353856327,1740096644114,-657.23,0.00013945,2]
[353856328,1740096644123,-500.0,0.00013945,2]
[353856329,1740096644132,-1996.0,0.00013945,2]
[353856330,1740096644142,-855.35,0.00013945,2]
[353856331,1740096644151,-1243.14,0.00013945,2]
[353856332,1740096644256,-2053.02,0.00013945,2]
[353856333,1740096644266,-2400.28,0.00013945,2]
[353856334,1740096644276,-1084.12,0.00013945,2]
[353856335,1740096644285,-5873.51,0.00013945,2]
[353856336,1740096644294,-500.0,0.00013945,2]
[353856337,1740096644303,-550.36,0.00013945,2]
[353856338,1740096644313,-500.0,0.00013945,2]
[353856339,1740096644323,-2528.55,0.00013945,2]
[353856340,1740096644332,-2085.88,0.00013945,2]
[353856341,1740096644341,-500.0,0.00013945,2]
[353856342,1740096644351,-500.0,0.00013945,2]
[353856343,1740096644360,-567.85,0.00013945,2]
[353856344,1740096644370,-500.0,0.00013945,2]
[353856345,1740096644379,-500.0,0.00013945,2]
[353856346,1740096644388,-500.0,0.00013945,2]
[353856347,1740096644397,-755.6,0.00013945,2]
[353856348,1740096644407,-500.0,0.00013945,2]
[353856349,1740096644417,-500.0,0.00013945,2]
[353856350,1740096644427,-1871.42,0.00013945,2]
[353856351,1740096644436,-18104.48,0.00013945,2]
[353856352,1740096644445,-500.0,0.00013945,2]
[353856353,1740096644455,-500.0,0.00013945,2]
[353856354,1740096644466,-500.0,0.00013945,2]
[353856355,1740096644476,-1712.90868116,0.00014,5]
[353856356,1740096644485,-500.0,0.00014027,2]
[353856357,1740096644495,-686.6,0.00014027,2]
[353856358,1740096644506,-500.0,0.00014027,2]
[353856359,1740096644515,-1000.0,0.00014027,2]
[353856360,1740096644526,-500.0,0.00014027,2]
[353856361,1740096644536,-500.0,0.00014027,2]
[353856362,1740096644547,-500.0,0.00014027,2]
[353856363,1740096644558,-500.0,0.00014027,2]
[353856364,1740096644567,-500.0,0.00014027,2]
[353856365,1740096644577,-500.0,0.00014027,2]
[353856366,1740096644587,-500.0,0.00014027,2]
[353856367,1740096644596,-1606.58,0.00014027,2]
[353856368,1740096644607,-500.0,0.00014027,2]
[353856369,1740096644616,-500.0,0.00014027,2]
[353856370,1740096644625,-500.0,0.00014027,2]
[353856371,1740096644635,-751.56,0.00014027,2]
[353856372,1740096644644,-500.0,0.00014027,2]
[353856373,1740096644654,-964.76,0.00014027,2]
[353856374,1740096644663,-589.91,0.00014027,2]
[353856375,1740096644672,-500.0,0.00014027,2]
[353856376,1740096644682,-500.0,0.00014027,2]
[353856377,1740096644692,-634.48,0.00014027,2]
[353856378,1740096644701,-687.91,0.00014027,2]
[353856379,1740096644710,-500.0,0.00014027,2]
[353856380,1740096644720,-1161.15,0.00014027,2]
[353856381,1740096644729,-647.21,0.00014027,2]
[353856382,1740096644739,-789.92,0.00014027,2]
[353856383,1740096644747,-1279.72,0.00014027,2]
[353856384,1740096644757,-638.7,0.00014027,2]
[353856385,1740096644766,-500.0,0.00014027,2]
[353856386,1740096644775,-658.92,0.00014027,2]
[353856387,1740096644785,-596.03,0.00014027,2]
[353856388,1740096644794,-1224.27,0.00014027,2]
[353856389,1740096644804,-500.0,0.00014027,2]
[353856390,1740096644814,-500.0,0.00014027,2]
[353856391,1740096644823,-901.49,0.00014027,2]
[353856392,1740096644832,-558.57,0.00014027,2]
[353856393,1740096644842,-500.0,0.00014027,2]
[353856394,1740096644851,-807.14,0.00014027,2]
[353856395,1740096644861,-588.3,0.00014027,2]
[353856396,1740096644871,-500.0,0.00014027,2]
[353856397,1740096644881,-500.0,0.00014027,2]
[353856398,1740096644890,-500.0,0.00014027,2]
[353856399,1740096644901,-500.0,0.00014027,2]
[353856400,1740096644911,-500.0,0.00014027,2]
[353856401,1740096644920,-500.0,0.00014027,2]
[353856402,1740096644930,-500.0,0.00014027,2]
[353856403,1740096644940,-2112.09,0.00014027,2]
[353856404,1740096644949,-2172.75,0.00014027,2]
[353856405,1740096644959,-500.0,0.00014027,2]
[353856406,1740096644968,-500.0,0.00014027,2]
[353856407,1740096644978,-528.95,0.00014027,2]
[353856408,1740096644988,-7729.28,0.00014027,2]
[353856409,1740096644999,-500.0,0.00014027,2]
[353856410,1740096645009,-3094.13,0.00014027,2]
[353856411,1740096645019,-1136.15,0.00014027,2]
[353856412,1740096645029,-1486.57,0.00014027,2]
[353856413,1740096645039,-600.33,0.00014027,2]
[353856414,1740096645048,-500.0,0.00014027,2]
[353856415,1740096645057,-500.0,0.00014027,2]
[353856416,1740096645067,-37996.16,0.00014027,2]
[353856417,1740096645077,-3464.25,0.00014027,2]
[353856418,1740096645087,-1175.47,0.00014027,2]
[353856419,1740096645096,-13639.53,0.00014027,2]
[353856420,1740096645106,-1634.77,0.00014027,2]
[353856421,1740096645118,-502.91,0.00014027,2]
[353856422,1740096645129,-500.0,0.00014027,2]
[353856423,1740096645139,-500.0,0.00014027,2]
[353856424,1740096645149,-790.91,0.00014027,2]
[353856425,1740096645161,-1221.06,0.00014027,2]
[353856426,1740096645172,-500.0,0.00014027,2]
[353856427,1740096645182,-1344.49,0.00014027,2]
[353856428,1740096645192,-622.0,0.00014027,2]